bitfinex/quotes_SOLUSD_20251226
["timestamp","ask_amount","ask_price","bid_price","bid_amount"]
[1766753331497,0.77,124.02,123.99,10.91493962]
[1766753332171,0.77,124.02,123.99,23.4748735]
[1766753332362,0.77,124.02,123.99,22.7848735]
[1766753333275,0.67,124.01,123.99,8.0648735]
[1766753334374,0.67,124.0,123.98,14.72]
[1766753335567,0.67,124.0,123.98,22.78578197]
[1766753342383,0.67,124.0,123.97,8.75628485]
[1766753342571,0.67,124.0,123.97,8.06628485]
[1766753342761,0.67,124.0,123.95,81.66846127]
[1766753342762,0.67,123.98,123.95,61.5]
[1766753342961,0.67,123.98,123.94,35.86208175]
[1766753343155,0.67,123.98,123.94,33.91568419]
[1766753343561,0.67,123.96,123.94,14.72]
[1766753344584,0.67,123.96,123.94,22.7883594]
[1766753345973,0.67,123.96,123.94,14.72]
[1766753346272,0.67,123.96,123.93,10.91911848]
[1766753347491,10.22662521,123.97,123.93,2.16006612]
[1766753348280,10.22662521,123.97,123.92,8.06961847]
[1766753348281,2.16006612,123.95,123.92,8.06961847]
[1766753348663,2.16006612,123.96,123.92,10.22968459]
[1766753352486,2.16006612,123.96,123.92,8.06961847]
[1766753352681,2.16006612,123.96,123.92,10.22968459]
[1766753353891,24.21209797,123.97,123.94,2.16006612]
[1766753354186,10.22530092,123.99,123.95,2.16006612]
[1766753354886,10.22530092,123.99,123.94,16.88006612]
[1766753355086,2.16006612,123.98,123.93,20.66671184]
[1766753355382,2.16006612,123.98,123.93,35.38671184]
[1766753355782,32.27537885,123.99,123.93,35.38671184]
[1766753355990,2.16006612,123.98,123.93,35.38671184]
[1766753357390,10.22599167,123.98,123.93,35.38671184]
[1766753358589,10.22599167,123.98,123.94,2.16006612]
[1766753358774,2.16006612,123.97,123.93,27.31773908]
[1766753359474,10.22599167,123.98,123.93,27.31773908]
[1766753359994,10.22599167,123.98,123.94,2.16006612]
[1766753360376,10.22599167,123.98,123.93,33.22657321]
[1766753360695,10.22599167,123.98,123.93,35.38663933]
[1766753360881,34.43808964,123.98,123.93,35.38663933]
[1766753362394,10.22599167,123.98,123.93,35.38663933]
[1766753363100,10.22599167,123.98,123.93,33.22657321]
[1766753363296,10.22599167,123.98,123.93,35.38663933]
[1766753364200,34.43808964,123.98,123.93,35.38663933]
[1766753365491,10.22599167,123.98,123.93,35.38663933]
[1766753366501,10.22599167,123.98,123.93,33.22657321]
[1766753366678,10.22599167,123.98,123.93,35.38663933]
[1766753368200,34.43808964,123.98,123.93,35.38663933]
[1766753371299,34.43808964,123.98,123.93,33.22657321]
[1766753371486,34.43808964,123.98,123.93,35.38663933]
[1766753374688,34.43808964,123.98,123.93,33.22657321]
[1766753374996,20.16355275,123.99,123.93,33.22657321]
[1766753375191,2.16006612,123.98,123.93,35.38663933]
[1766753376002,11.44285768,123.98,123.93,36.60361383]
[1766753376202,11.44285768,123.98,123.93,33.22657321]
[1766753376701,11.44285768,123.98,123.93,36.60361383]
[1766753379400,3.37704062,123.97,123.93,33.22657321]
[1766753380507,11.44285768,123.98,123.93,33.22657321]
[1766753381698,3.37704062,123.97,123.93,33.22657321]
[1766753384988,11.44285768,123.98,123.93,33.22657321]
[1766753385501,11.44285768,123.98,123.93,18.50657321]
[1766753385684,11.44285768,123.98,123.93,21.88361383]
[1766753387305,5.43958399,123.97,123.93,21.88361383]
[1766753388510,24.21209797,123.99,123.95,3.37704062]
[1766753388695,5.43964481,123.98,123.94,11.44536992]
[1766753388901,3.37704062,123.99,123.94,11.44536992]
[1766753389212,5.43935285,123.98,123.94,11.44536992]
[1766753389406,3.37704062,124.0,123.94,11.44536992]
[1766753389711,5.43920618,123.99,123.94,11.44536992]
[1766753390286,5.43920618,123.99,123.94,31.61642042]
[1766753390786,8.8162468,123.99,123.94,31.61642042]
[1766753390990,5.43920618,123.98,123.94,31.61642042]
[1766753391531,5.43920618,123.98,123.95,3.37704062]
[1766753391709,116.34104221,124.01,123.95,18.09704062]
[1766753391891,5.43847355,124.0,123.96,3.37704062]
[1766753392409,3.37704062,124.01,123.96,3.37704062]
[1766753393620,18.6010337,124.02,123.97,8.06646769]
[1766753393805,5.43586358,124.01,123.97,11.44350831]
[1766753394119,3.47704062,124.02,123.97,11.44350831]
[1766753394314,5.43581861,124.01,123.97,11.44350831]
[1766753395512,5.22310441,124.01,123.97,11.44350831]
[1766753395699,0.1,124.02,123.98,11.44238847]
[1766753396127,0.1,124.02,124.0,3.37704062]
[1766753396332,0.1,124.02,123.99,11.53921671]
[1766753396633,0.1,124.02,123.99,3.37704062]
[1766753396935,0.1,124.02,123.99,6.85408124]
[1766753397433,0.1,124.02,123.99,3.37704062]
[1766753399806,0.1,124.02,123.99,11.4416296]
[1766753400820,0.1,124.02,123.99,14.91867022]
[1766753401115,0.1,124.02,123.99,11.5416296]
[1766753401315,0.68,124.01,124.0,3.37704062]
[1766753401531,0.78,124.02,124.0,3.37704062]
[1766753402121,0.78,124.02,123.98,26.16261415]
[1766753402714,8.16357467,124.02,123.98,14.72]
[1766753402925,0.68,124.0,123.98,14.72]
[1766753403304,0.68,124.0,123.98,22.78579735]
[1766753409140,0.68,124.0,123.98,26.16283797]
[1766753412133,0.68,124.0,123.98,22.78579735]
[1766753412325,0.68,124.0,123.98,26.16283797]
[1766753413137,0.68,124.0,123.98,26.83283797]
[1766753413313,0.1,124.02,123.98,26.83283797]
[1766753413525,0.68,124.01,123.99,3.37704062]
[1766753414839,0.68,124.01,123.98,26.83283797]
[1766753415539,0.77,124.02,123.99,4.03704062]
[1766753420739,0.77,124.02,123.98,26.82283797]
[1766753421570,0.67,124.01,123.98,14.72]
[1766753421737,0.67,124.01,123.98,18.09704062]
[1766753423751,0.67,124.01,123.98,18.75704062]
[1766753424642,0.67,124.01,123.98,15.38]
[1766753425043,0.67,124.01,123.98,26.82246465]
[1766753425937,0.67,124.01,123.98,23.44542403]
[1766753426114,0.67,124.01,123.98,26.82246465]
[1766753426323,0.67,124.01,123.98,12.10246465]
[1766753436050,0.67,124.01,123.98,10.88495643]
[1766753438951,0.67,124.01,123.98,8.72542403]
[1766753439155,0.67,124.01,123.98,10.88495643]
[1766753439530,0.67,124.01,123.98,8.72542403]
[1766753439731,0.67,124.01,123.98,10.88495643]
[1766753439932,0.67,124.01,123.98,2.1595324]
[1766753444654,0.67,124.01,123.97,23.446182]
[1766753444861,0.67,124.01,123.98,2.1595324]
[1766753446956,0.67,124.01,123.97,23.446182]
[1766753447135,0.67,124.01,123.98,2.1595324]
[1766753447462,0.67,124.01,123.97,23.446182]
[1766753447661,0.67,124.01,123.98,2.1595324]
[1766753450460,0.67,124.01,123.98,0.69]
[1766753462588,0.67,124.01,123.98,10.91517732]
[1766753463082,0.67,124.01,123.99,2.1595324]
[1766753463377,0.1,124.02,123.99,2.1595324]
[1766753463675,5.44479595,124.01,123.98,10.22517732]
[1766753463876,5.44479595,124.01,123.98,2.1595324]
[1766753464968,5.44479595,124.01,123.97,22.78626516]
[1766753465174,5.44479595,124.01,123.98,2.1595324]
[1766753466972,8.16323578,124.02,123.98,2.1595324]
[1766753467176,5.44567717,124.01,123.97,22.78626516]
[1766753467370,5.44567717,124.01,123.98,2.1595324]
[1766753474091,5.44567717,124.01,123.97,22.78626516]
[1766753474281,5.44567717,124.01,123.98,2.1595324]
[1766753475581,8.16323578,124.02,123.98,2.1595324]
[1766753475754,5.44734645,124.01,123.98,2.1595324]
[1766753477975,5.44734645,124.01,123.98,10.22524635]
[1766753484885,5.44734645,124.01,123.98,8.06571395]
[1766753485086,5.44734645,124.01,123.98,10.22524635]
[1766753485785,5.44734645,124.01,124.0,2.1595324]
[1766753486084,0.1,124.02,123.99,2.1595324]
[1766753487792,0.1,124.02,123.99,10.22469635]
[1766753490292,5.54482627,124.02,123.99,10.22469635]
[1766753490884,5.54482627,124.02,123.98,28.23035972]
[1766753491193,5.54482627,124.02,123.98,30.38989212]
[1766753491489,6.26482627,124.02,123.99,0.68]
[1766753491689,0.82,124.02,123.99,0.68]
[1766753500203,0.82,124.02,123.99,8.74502043]
[1766753514334,1598.12785109,124.06,124.02,10.43767296]
[1766753514612,1078.04580876,124.06,124.05,13.81175358]
[1766753514784,90.53607616,124.06,124.05,19.93985358]
[1766753514983,33.84590817,124.06,124.05,13.81175358]
[1766753515183,0.1,124.1,124.06,10.43767296]
[1766753515397,0.1,124.1,124.07,14.72]
[1766753515598,3.84329601,124.14,124.09,3.37408062]
[1766753516390,4.57893468,124.12,124.09,11.43264189]
[1766753516584,4.57893468,124.12,124.09,8.05856127]
[1766753520521,1e-08,124.11,124.09,11.43264189]
[1766753521013,4.03612296,124.13,124.1,3.37408062]
[1766753521320,4.03612296,124.13,124.09,42.01698259]
[1766753523223,4.03612296,124.13,124.09,38.64290197]
[1766753523395,4.03612296,124.13,124.09,42.01698259]
[1766753526014,0.72,124.11,124.09,10.43767296]
[1766753526816,0.72,124.12,124.09,18.49619379]
[1766753527124,4.03612296,124.13,124.09,42.01694215]
[1766753527499,4.75612296,124.13,124.09,42.01694215]
[1766753528002,4.75612296,124.13,124.09,38.64286153]
[1766753528619,3.37408062,124.11,124.09,38.64286153]
[1766753528794,4.75612296,124.13,124.09,38.64286153]
[1766753529202,3.37408062,124.11,124.09,38.64286153]
[1766753533316,0.72,124.12,124.09,38.64286153]
[1766753533520,3.37408062,124.11,124.09,38.64286153]
[1766753534426,3.37408062,124.12,124.09,38.64286153]
[1766753535003,0.30917716,124.12,124.09,100.55286153]
[1766753535205,3.68325778,124.12,124.09,100.55286153]
[1766753535503,3.68325778,124.12,124.1,8.46739536]
[1766753537317,3.37408062,124.12,124.1,8.46739536]
[1766753538034,4.75612296,124.13,124.1,8.46739536]
[1766753539219,8.13020358,124.13,124.1,8.46739536]
[1766753540733,8.13020358,124.13,124.1,69.96739536]
[1766753542535,7.41020358,124.13,124.11,8.46716306]
[1766753542714,8.13020358,124.13,124.11,8.05716306]
[1766753543735,7.41020358,124.13,124.11,8.46716306]
[1766753543930,1e-08,124.13,124.12,0.41]
[1766753544633,1e-08,124.13,124.12,8.4667193]
[1766753545210,10.52676993,124.15,124.14,10.84767296]
[1766753545438,3.37408062,124.16,124.14,10.84767296]
[1766753545754,25.04868578,124.17,124.14,10.84767296]
[1766753546039,3.37408062,124.16,124.14,10.84767296]
[1766753546407,25.04868578,124.17,124.14,10.84767296]
[1766753546640,28.4227664,124.17,124.15,8.05477245]
[1766753548251,18.8302932,124.19,124.17,10.43767296]
[1766753548452,22.20437382,124.19,124.17,10.43767296]
[1766753548613,3.37408062,124.18,124.17,10.43767296]
[1766753548813,3.37408062,124.18,124.14,69.55494357]
[1766753549040,26.88248879,124.19,124.14,8.05494357]
[1766753549242,3.37408062,124.16,124.14,8.05494357]
[1766753549436,3.37408062,124.16,124.11,102.09905679]
[1766753549437,3.37408062,124.15,124.11,57.36839611]
[1766753549616,3.37408062,124.14,124.12,8.05632269]
[1766753549949,47.01293407,124.19,124.09,8.05827485]
[1766753549950,14.7,124.15,124.09,8.05827485]
[1766753550119,3.37408062,124.11,124.09,8.05827485]
[1766753550814,3.37408062,124.11,124.09,18.49594781]
[1766753551121,3.37408062,124.11,124.09,8.05827485]
[1766753551329,3.37408062,124.11,124.1,10.43767296]
[1766753554540,3.37408062,124.11,124.1,18.49569068]
[1766753557522,4.09408062,124.12,124.1,18.49569068]
[1766753559443,22.7549944,124.15,124.1,10.43767296]
[1766753559444,3.37408062,124.11,124.1,10.43767296]
[1766753559748,0.72,124.1,124.05,8.06083914]
[1766753559920,2.87756883,124.07,124.05,8.06083914]
[1766753561638,2.87756883,124.07,124.05,18.4985121]
[1766753562550,0.72,124.07,124.05,18.4985121]
[1766753570046,0.72,124.07,124.05,79.9985121]
[1766753573133,0.72,124.07,124.05,80.6985121]
[1766753574255,22.75783743,124.11,124.05,80.6985121]
[1766753574438,2.15756883,124.08,124.05,80.6985121]
[1766753575353,2.15756883,124.09,124.05,80.6985121]
[1766753575555,2.15756883,124.07,124.05,18.4985121]
[1766753576560,2.81756883,124.07,124.05,18.4985121]
[1766753578156,2.15756883,124.07,124.05,10.43767296]
[1766753578536,2.81756883,124.07,124.05,10.43767296]
[1766753579561,0.66,124.07,124.05,18.49855032]
[1766753580969,17.53756883,124.09,124.06,0.7]
[1766753581260,0.66,124.08,124.06,0.7]
[1766753581472,0.66,124.08,124.05,100.85171436]
[1766753582470,2.81756883,124.08,124.05,100.85171436]
[1766753585871,0.66,124.08,124.05,100.85171436]
[1766753586041,2.81756883,124.08,124.05,100.85171436]
[1766753587665,2.81756883,124.07,124.05,79.99855032]
[1766753588867,2.81756883,124.07,124.05,80.69855032]
[1766753590571,2.81756883,124.07,124.05,19.19855032]
[1766753591268,14.72,124.09,124.05,19.19855032]
[1766753591475,0.66,124.15,124.09,10.43767296]
[1766753591660,28.18975236,124.16,124.09,10.43767296]
[1766753591982,2.81756883,124.11,124.09,10.43767296]
[1766753592973,2.15756883,124.1,124.08,8.75920793]
[1766753593272,8.05738612,124.11,124.06,8.06060036]
[1766753593452,2e-08,124.08,124.06,8.76060036]
[1766753594770,2e-08,124.09,124.06,8.76060036]
[1766753595363,1e-08,124.09,124.05,18.49878998]
[1766753595673,2e-08,124.07,124.05,19.19878998]
[1766753595978,2e-08,124.08,124.05,19.19878998]
[1766753597371,0.10000002,124.08,124.05,19.19878998]
[1766753598761,0.1,124.08,124.05,19.19878998]
[1766753598965,2e-08,124.08,124.05,19.19878998]
[1766753599591,2e-08,124.07,124.05,18.49878998]
[1766753599770,2e-08,124.07,124.05,10.43767296]
[1766753600475,2e-08,124.07,124.05,18.49892087]
[1766753604189,2.15756883,124.07,124.05,10.43767296]
[1766753604385,2.15756883,124.06,124.03,8.76210343]
[1766753604687,2.15756883,124.05,124.03,8.06210343]
[1766753604862,2.15756883,124.05,124.03,8.76210343]
[1766753605989,2.15756883,124.08,124.03,8.76210343]
[1766753606373,2.15756883,124.05,124.03,8.76210343]
[1766753607084,2.15756883,124.05,124.03,8.06210343]
[1766753607975,2.15756883,124.05,124.02,58.67884459]
[1766753608179,2.15756883,124.05,124.02,50.61589993]
[1766753608388,2.15756883,124.04,124.02,11.13767296]
[1766753609168,8.06062826,124.06,124.01,8.76358438]
[1766753609367,2.15756883,124.03,124.01,8.76358438]
[1766753612097,8.05996614,124.07,124.01,8.76358438]
[1766753612272,2.15756883,124.03,124.01,8.76358438]
[1766753612669,2.15756883,124.03,124.01,0.7]
[1766753613490,2.15756883,124.03,124.0,18.50205883]
[1766753613794,2.15756883,124.04,124.01,8.06381083]
[1766753614183,2.15756883,124.03,124.01,8.06381083]
[1766753615092,8.06088652,124.06,124.01,8.06381083]
[1766753615396,2.15756883,124.04,124.01,8.06381083]
[1766753616104,2.15756883,124.05,124.01,10.22137966]
[1766753619584,8.05919681,124.09,124.02,2.15756883]
[1766753619791,2.15756883,124.06,124.02,63.65756883]
[1766753620794,2.15756883,124.07,124.03,8.0625655]
[1766753621193,2.15756883,124.06,124.03,8.0625655]
[1766753622115,3.37209976,124.06,124.03,8.0625655]
[1766753626815,3.37209976,124.06,124.03,11.43466526]
[1766753628215,8.05866709,124.09,124.03,11.43466526]
[1766753628418,3.37209976,124.06,124.03,11.43466526]
[1766753630204,3.37209976,124.08,124.04,3.37209976]
[1766753631322,3.37209976,124.08,124.04,11.43371861]
[1766753632323,3.37209976,124.08,124.04,8.06161885]
[1766753633619,8.05801772,124.1,124.04,11.43371861]
[1766753633824,3.37209976,124.09,124.04,72.93371861]
[1766753634419,3.37209976,124.09,124.05,3.37209976]
[1766753634719,3.37209976,124.09,124.05,11.43295978]
[1766753637221,3.37209976,124.08,124.05,8.06086002]
[1766753637801,3.37209976,124.07,124.05,8.06086002]
[1766753639112,3.37209976,124.08,124.05,8.06086002]
[1766753641327,3.37209976,124.08,124.04,72.93372939]
[1766753641921,3.37209976,124.08,124.04,69.56162963]
[1766753642225,3.37209976,124.07,124.04,69.56162963]
[1766753642819,3.37209976,124.07,124.04,61.5]
[1766753643002,3.37209976,124.05,123.99,102.36702496]
[1766753643202,3.37209976,124.03,123.99,40.86702496]
[1766753643525,3.37209976,124.03,123.99,51.30469792]
[1766753644022,3.37209976,124.03,124.0,8.06425281]
[1766753646822,3.37209976,124.04,124.0,11.43635257]
[1766753649126,28.21036225,124.07,124.0,11.43635257]
[1766753649328,3.37209976,124.04,124.0,11.43635257]
[1766753656651,3.37209976,124.04,124.0,8.06425281]
[1766753656815,3.37209976,124.04,124.0,11.43635257]
[1766753659042,3.37209976,124.04,124.0,8.06425281]
[1766753659253,3.37209976,124.03,124.0,8.06425281]
[1766753659424,3.37209976,124.04,124.0,11.43635257]
[1766753660953,3.37209976,124.03,124.0,8.06425281]
[1766753661323,3.37209976,124.04,124.0,11.43635257]
[1766753662652,3.37209976,124.03,124.0,8.06425281]
[1766753662860,3.37209976,124.01,123.99,47.93259816]
[1766753663356,3.37209976,124.02,123.99,47.93259816]
[1766753664729,3.37209976,124.01,123.99,37.4949252]
[1766753667239,3.37209976,124.0,123.97,10.43767296]
[1766753669067,8.06415719,124.01,123.97,10.43767296]
[1766753669068,3.37209976,123.99,123.97,10.43767296]
[1766753675474,3.37209976,123.99,123.96,0.2]
[1766753675681,3.37209976,123.97,123.96,0.2]
[1766753675979,3.37209976,123.96,123.93,8.0689359]
[1766753677671,8.06542402,123.99,123.93,8.0689359]
[1766753677849,3.37209976,123.96,123.93,8.0689359]
[1766753683974,2.161748,123.96,123.93,8.0689359]
[1766753691985,2.161748,123.95,123.92,18.70715352]
[1766753698189,2.161748,123.96,123.92,20.86890152]
[1766753698376,8.06665058,123.97,123.92,20.86890152]
[1766753698577,2.161748,123.96,123.92,20.86890152]
[1766753703088,2.161748,123.96,123.92,18.70715352]
[1766753703287,2.161748,123.94,123.92,10.63767296]
[1766753703880,2.161748,123.95,123.92,18.70738713]
[1766753704177,2.161748,123.96,123.92,20.86913513]
[1766753705390,2.161748,123.97,123.93,2.161748]
[1766753705706,2.161748,123.98,123.93,2.161748]
[1766753706595,2.161748,123.98,123.94,10.2301682]
[1766753706782,2.161748,123.99,123.95,2.161748]
[1766753709504,2.161748,123.99,123.96,8.06711842]
[1766753710599,2.161748,124.0,123.96,8.06711842]
[1766753711403,8.06411284,124.01,123.96,8.06711842]
[1766753711602,2.161748,123.99,123.96,8.06711842]
[1766753714003,2.161748,124.0,123.96,10.22886642]
[1766753717410,8.06411284,124.01,123.96,10.22886642]
[1766753717787,2.161748,124.0,123.96,10.22886642]
[1766753718481,22.78346328,124.02,123.96,10.22886642]
[1766753718684,2.161748,124.0,123.96,10.22886642]
[1766753722114,22.78346328,124.02,123.96,10.22886642]
[1766753722301,2.161748,124.0,123.96,10.22886642]
[1766753725717,8.06397247,124.01,123.96,10.22886642]
[1766753725905,2.161748,124.0,123.96,10.22886642]
[1766753727622,2.161748,124.0,123.96,8.06711842]
[1766753727920,2.161748,124.0,123.96,10.22886642]
[1766753740238,10.22572047,124.01,123.97,2.161748]
[1766753743343,10.22572047,124.01,123.96,10.22886642]
[1766753743952,11.4390558,124.01,123.96,11.44220175]
[1766753747243,3.37508333,124.0,123.96,11.44220175]
[1766753747627,3.37508333,124.0,123.96,8.06711842]
[1766753747828,3.37508333,124.0,123.96,11.44220175]
[1766753756863,3.37508333,124.0,123.96,8.06711842]
[1766753757067,3.37508333,124.0,123.96,11.44220175]
[1766753764786,3.37508333,124.0,123.96,8.06711842]
[1766753775886,3.37508333,123.99,123.96,8.06711842]
[1766753778011,3.37508333,124.0,123.96,8.06711842]
[1766753781215,8.06397247,124.01,123.96,8.06711842]
[1766753781518,3.37508333,124.0,123.96,8.06711842]
[1766753781716,3.37508333,123.99,123.96,8.06711842]
[1766753782588,3.37508333,124.0,123.96,8.06711842]
[1766753786423,8.06397247,124.01,123.96,8.06711842]
[1766753786598,3.37508333,124.0,123.96,8.06711842]
[1766753803947,2.16042972,124.0,123.96,8.06711842]
[1766753812653,2.16042972,124.0,123.96,10.22754814]
[1766753813248,2.16042972,124.0,123.96,8.06711842]
[1766753814753,2.16042972,123.98,123.95,18.50514216]
[1766753814956,2.16042972,123.99,123.95,18.50514216]
[1766753821052,2.16042972,123.98,123.95,18.50514216]
[1766753821351,2.16042972,123.98,123.96,0.68]
[1766753821729,14.72,123.99,123.96,0.68]
[1766753821933,16.88042972,123.99,123.96,0.68]
[1766753823157,16.88042972,123.99,123.96,8.74709129]
[1766753823564,2.16042972,123.98,123.96,8.74709129]
[1766753824463,2.16042972,123.97,123.96,0.68]
[1766753824641,2.16042972,123.98,123.96,0.68]
[1766753825050,2.16042972,123.98,123.96,8.06701374]
[1766753825244,2.16042972,123.99,123.97,0.68]
[1766753830270,22.78458884,124.0,123.97,0.68]
[1766753830440,2.16042972,123.99,123.97,0.68]
[1766753831879,22.78458884,124.0,123.97,0.68]
[1766753832048,2.16042972,123.99,123.97,0.68]
[1766753843175,2.16042972,123.98,123.97,0.68]
[1766753843470,2.16042972,123.98,123.94,20.17074003]
[1766753843471,2.16042972,123.99,123.95,8.06776926]
[1766753843678,2.16042972,123.98,123.96,0.68]
[1766753847981,2.16042972,123.99,123.96,0.68]
[1766753848373,22.78458884,124.0,123.97,0.68]
[1766753848579,24.94501856,124.0,123.97,0.68]
[1766753848759,2.16042972,123.99,123.97,0.68]
[1766753853381,2.16042972,123.99,123.96,8.06705583]
[1766753854789,2.16042972,123.99,123.94,30.39958995]
[1766753855290,2.16042972,123.98,123.94,30.39958995]
[1766753861195,2.16042972,123.99,123.94,30.39958995]
[1766753864008,3.37600839,123.99,123.94,31.61516862]
[1766753865394,22.78458884,124.0,123.94,31.61516862]
[1766753865596,3.37600839,123.99,123.94,31.61516862]
[1766753867795,3.37600839,123.98,123.94,8.0684202]
[1766753868111,3.37600839,123.98,123.94,11.44442859]
[1766753868476,3.37600839,123.98,123.94,8.0684202]
[1766753887790,3.37600839,123.98,123.94,11.44442859]
[1766753891413,3.37600839,123.98,123.95,8.06772265]
[1766753892415,3.37600839,123.98,123.95,8.73772265]
[1766753896933,35.64946549,123.99,123.95,8.73772265]
[1766753899905,3.37600839,123.98,123.95,8.73772265]
[1766753901521,3.37600839,123.97,123.95,8.73772265]
[1766753905633,3.37600839,123.97,123.95,0.67]
[1766753906031,3.37600839,123.98,123.95,0.67]
[1766753913041,8.06526667,123.99,123.95,0.67]
[1766753913215,8.82109574,123.98,123.95,0.67]
[1766753913416,3.37600839,123.98,123.95,0.67]
[1766753916839,8.06526667,123.99,123.95,0.67]
[1766753917036,8.82104841,123.98,123.95,0.67]
[1766753917240,3.37600839,123.98,123.95,0.67]
[1766753920251,14.72,124.0,123.96,0.72]
[1766753920552,5.44480809,123.99,123.96,0.72]
[1766753922557,8.82081648,123.99,123.96,0.72]
[1766753922752,3.37600839,123.99,123.96,0.72]
[1766753923334,22.78453828,124.0,123.95,8.06773251]
[1766753923643,3.37600839,123.98,123.95,8.06773251]
[1766753925953,2.16078999,123.98,123.95,8.06773251]
[1766753928541,2.16078999,123.99,123.95,10.2285225]
[1766753929058,2.16078999,123.99,123.95,8.06773251]
[1766753929259,2.16078999,123.99,123.95,10.2285225]
[1766753930254,2.16078999,123.99,123.94,30.39952043]
[1766753933962,2.16078999,123.99,123.94,28.23873044]
[1766753934166,2.16078999,123.99,123.94,30.39952043]
[1766753940200,10.22601683,123.99,123.94,30.39952043]
[1766753940377,2.16078999,123.98,123.94,10.22921019]
[1766753941695,2.16078999,123.97,123.94,8.0684202]
[1766753941897,2.16078999,123.98,123.94,8.0684202]
[1766753942697,2.16078999,123.97,123.94,8.0684202]
[1766753945508,2.16078999,123.97,123.94,8.7284202]
[1766753947683,2.16078999,123.97,123.94,0.66]
[1766753947900,2.16078999,123.97,123.92,0.86]
[1766753947901,8.06668638,123.97,123.92,0.86]
[1766753948126,7.60360192,123.96,123.92,8.92959269]
[1766753948302,2.16078999,123.96,123.93,0.66]
[1766753948821,2.16078999,123.95,123.92,0.86]
[1766753956923,32.2814128,123.96,123.93,0.69]
[1766753957306,34.44220279,123.96,123.93,0.69]
[1766753961027,2.16078999,123.95,123.93,0.69]
[1766753961336,2.16078999,123.95,123.92,0.89]
[1766753963453,32.2814128,123.96,123.92,0.89]
[1766753963749,2.16078999,123.95,123.92,0.89]
[1766753965152,32.2814128,123.96,123.93,0.69]
[1766753965318,2.16078999,123.95,123.93,0.69]
[1766753967756,32.2814128,123.96,123.93,0.69]
[1766753967757,34.44220279,123.96,123.93,0.69]
[1766753967959,2.16078999,123.95,123.93,0.69]
[1766753970134,2.16078999,123.96,123.93,0.69]
[1766753977180,26.37288796,123.96,123.93,0.69]
[1766753979675,2.16078999,123.95,123.93,0.69]
[1766753983396,2.16078999,123.95,123.92,8.26958677]
[1766753987998,3.37797249,123.95,123.92,8.26958677]
[1766753989682,24.21209797,123.96,123.94,3.37797249]
[1766753989991,131.08350986,123.99,123.94,3.37797249]
[1766753990195,8.81800075,123.98,123.94,3.37797249]
[1766753990505,3.37797249,123.98,123.94,3.37797249]
[1766753990704,50.39170029,123.99,123.93,3.37797249]
[1766753990902,5.4406067,123.98,123.94,24.20819043]
[1766753991110,5.4406067,123.98,123.94,35.65433059]
[1766753991394,8.81857919,123.98,123.94,35.65433059]
[1766753991585,3.37797249,123.98,123.94,35.65433059]
[1766753992207,47.0137278,123.99,123.94,35.65433059]
[1766753992407,8.81990993,123.98,123.94,35.65433059]
[1766753992700,3.37797249,123.98,123.94,35.65433059]
[1766753993106,3.37797249,123.98,123.94,32.2763581]
[1766753994908,3.37797249,123.98,123.94,35.65433059]
[1766753999801,3.37797249,123.98,123.94,32.2763581]
[1766754001298,3.37797249,123.98,123.94,35.65433059]
[1766754001598,14.72,123.99,123.95,3.37797249]
[1766754001775,18.09797249,123.99,123.95,3.37797249]
[1766754001975,18.09797249,123.99,123.95,24.20623714]
[1766754002172,3.37797249,123.98,123.94,8.06816767]
[1766754002395,3.37797249,123.97,123.94,8.06816767]
[1766754003301,3.37797249,123.96,123.93,32.27528969]
[1766754003507,3.37797249,123.96,123.93,8.06905255]
[1766754003685,27.58811654,123.97,123.93,8.06905255]
[1766754004481,24.21014405,123.97,123.93,8.06905255]
[1766754004680,27.58811654,123.97,123.93,8.06905255]
[1766754005202,3.37797249,123.96,123.93,8.06905255]
[1766754006281,27.58811654,123.97,123.93,8.06905255]
[1766754010309,3.37797249,123.97,123.93,8.06905255]
[1766754011610,3.37797249,123.97,123.94,8.74841314]
[1766754011805,11.44425352,123.98,123.94,8.74841314]
[1766754012198,3.37797249,123.98,123.95,0.68]
[1766754013914,46.99558337,123.99,123.95,0.68]
[1766754014088,5.44004283,123.98,123.96,0.72]
[1766754014411,26.16341181,123.99,123.96,0.72]
[1766754015214,3.37797249,123.98,123.96,0.72]
[1766754035323,11.44392997,123.98,123.94,8.06826452]
[1766754035523,3.37797249,123.98,123.95,0.72]
[1766754036130,30.85359123,123.99,123.95,0.72]
[1766754036302,8.82152467,123.98,123.95,0.72]
[1766754036625,3.37797249,123.98,123.95,0.72]
[1766754036823,2.65797249,123.98,123.95,0.72]
[1766754039133,31.54359123,123.99,123.95,0.72]